fUST/lending_fUST_20240421
["ID","MTS","AMOUNT","RATE_DAILY","PERIOD"]
[323100044,1713660647720,-2906.1,0.0002204,2]
[323100045,1713660647729,-391.715099,0.0002204,2]
[323100046,1713660647738,-508.62857923,0.0002204,2]
[323100047,1713660647747,-500.0,0.0002204,2]
[323100048,1713660647757,-500.0,0.0002204,2]
[323100049,1713660647766,-500.0,0.0002204,2]
[323100050,1713660647775,-504.94591798,0.0002204,2]
[323100051,1713660647784,-631.25,0.0002204,2]
[323100052,1713660647794,-500.0,0.0002204,2]
[323100053,1713660647803,-500.0,0.0002204,2]
[323100054,1713660647812,-500.0,0.0002204,2]
[323100055,1713660647822,-622.023017,0.0002204,2]
[323100056,1713660647832,-622.023017,0.0002204,2]
[323100057,1713660647841,-408.36520558,0.0002204,2]
[323100058,1713660647849,-500.0,0.0002204,2]
[323100059,1713660647858,-622.023017,0.0002204,2]
[323100060,1713660647869,-622.023017,0.0002204,2]
[323100061,1713660647878,-500.0,0.0002204,2]
[323100062,1713660647887,-283.76241,0.0002204,2]
[323100063,1713660647896,-283.76241,0.0002204,2]
[323100064,1713660647905,-500.0,0.0002204,2]
[323100065,1713660647915,-283.76241,0.0002204,2]
[323100066,1713660647924,-283.76241,0.0002204,2]
[323100067,1713660647933,-470.19377766,0.0002204,2]
[323100068,1713660647943,-2028.85,0.0002204,2]
[323100069,1713660647953,-2028.85,0.0002204,2]
[323100070,1713660647963,-500.0,0.0002204,2]
[323100071,1713660647972,-500.0,0.0002204,2]
[323100072,1713660647982,-3846.38,0.0002204,2]
[323100073,1713660647991,-577.05544225,0.0002204,2]
[323100074,1713660648001,-500.0,0.0002204,2]
[323100075,1713660648010,-1710.6,0.0002204,2]
[323100076,1713660648019,-504.41036781,0.0002204,2]
[323100077,1713660648028,-500.0,0.0002204,2]
[323100078,1713660648039,-1971.14,0.0002204,2]
[323100079,1713660648048,-577.61978314,0.0002204,2]
[323100080,1713660648057,-501.80675749,0.0002204,2]
[323100081,1713660648066,-500.0,0.0002204,2]
[323100082,1713660648075,-500.0,0.0002204,2]
[323100083,1713660648084,-3155.32,0.0002204,2]
[323100084,1713660648093,-198.55860674,0.0002204,2]
[323100085,1713660648104,-155.07739996,0.0002204,2]
[323100086,1713660648114,-500.0,0.0002204,2]
[323100087,1713660648127,-500.0,0.0002204,2]
[323100088,1713660648137,-248.54422104,0.0002204,2]
[323100089,1713660648147,-1799.930181,0.0002204,2]
[323100090,1713660648157,-1799.930181,0.0002204,2]
[323100091,1713660648166,-1799.930181,0.0002204,2]
[323100092,1713660648175,-500.0,0.0002204,2]
[323100093,1713660648184,-1799.930181,0.0002204,2]
[323100094,1713660648193,-1799.930181,0.0002204,2]
[323100095,1713660648202,-1799.930181,0.0002204,2]
[323100096,1713660648211,-151.0,0.0002204,2]
[323100097,1713660648220,-151.0,0.0002204,2]
[323100098,1713660648229,-151.0,0.0002204,2]
[323100099,1713660648238,-500.0,0.0002204,2]
[323100100,1713660648247,-500.0,0.0002204,2]
[323100101,1713660648257,-1736.19,0.0002204,2]
[323100102,1713660648266,-500.0,0.0002204,2]
[323100103,1713660648275,-151.0,0.0002204,2]
[323100104,1713660648284,-151.0,0.0002204,2]
[323100105,1713660648292,-500.0,0.0002204,2]
[323100106,1713660648301,-257.869822,0.0002204,2]
[323100107,1713660648310,-500.0,0.0002204,2]
[323100108,1713660648319,-500.0,0.0002204,2]
[323100109,1713660648328,-151.0,0.0002204,2]
[323100110,1713660648337,-151.0,0.0002204,2]
[323100111,1713660648347,-151.0,0.0002204,2]
[323100112,1713660648356,-626.03,0.0002204,2]
[323100113,1713660648365,-1488.93939459,0.00022041,2]
[323100114,1713660648375,-335.68213909,0.00022041,2]
[323100115,1713660648384,-154.98448297,0.00022041,2]
[323100116,1713660648394,-468.40473074,0.00022041,2]
[323100117,1713660648403,-575.21328934,0.00022041,2]
[323100118,1713660648413,-787.06375319,0.00022041,2]
[323100119,1713660648422,-6872.04176031,0.00022041,2]
[323100120,1713660648437,-654.01823969,0.00022041,2]
[323100121,1713660648447,-334.53443265,0.00022041,2]
[323100122,1713660665063,150.5,0.0002429,35]
[323100123,1713660665144,150.5,0.0002429,35]
[323100124,1713660667037,199.28,0.0002428,35]
[323100125,1713660667497,229.33,0.0002428,35]
[323100127,1713660714249,150.0,0.0001994,2]
[323100128,1713661163150,201.77244806,0.00020925,2]
[323100129,1713661272894,200.0,0.00020842,2]
[323100133,1713661412893,302.23394,0.00020973,2]
[323100145,1713661816320,154.84515485,0.00021,2]
[323100171,1713661832261,-265.26449715,0.00021831,7]
[323100173,1713661832270,-48.96116875,0.00021832,2]
[323100178,1713661832315,-108.69623604,0.00021832,2]
[323100179,1713661832325,-156.14184292,0.00022,2]
[323100185,1713661832369,-317.61930366,0.00022,2]
[323100280,1713661838331,-526.23885342,0.00022,2]
[323100282,1713661838340,-300.0,0.00022031,2]
[323100284,1713661838349,-300.0,0.00022031,2]
[323100285,1713661838358,-154.84515485,0.00022031,2]
[323100287,1713661838367,-677.63819334,0.00022032,2]
[323100289,1713661838376,-500.0,0.00022032,2]
[323100290,1713661838385,-192.42437737,0.00022032,2]
[323100291,1713661838394,-450.29008479,0.00022032,2]
[323100292,1713661838403,-540.60756608,0.00022032,2]
[323100293,1713661838412,-3845.48199227,0.00022033,2]
[323100294,1713661838421,-500.0,0.00022033,2]
[323100295,1713661838430,-8967.7,0.00022033,2]
[323100296,1713661838439,-500.0,0.00022033,2]
[323100297,1713661838448,-1038.23,0.00022033,2]
[323100298,1713661838457,-508.68990399,0.00022033,2]
[323100299,1713661838467,-7198.53,0.00022033,2]
[323100300,1713661838476,-500.0,0.00022033,2]
[323100301,1713661838485,-500.0,0.00022033,2]
[323100302,1713661838495,-500.0,0.00022033,2]
[323100303,1713661838504,-506.82605166,0.00022033,2]
[323100304,1713661838512,-544.45684407,0.00022033,2]
[323100305,1713661838521,-500.0,0.00022033,2]
[323100306,1713661838531,-500.0,0.00022033,2]
[323100307,1713661838540,-500.0,0.00022033,2]
[323100308,1713661838550,-500.0,0.00022033,2]
[323100309,1713661838561,-2122.82,0.00022033,2]
[323100310,1713661838572,-649.20300322,0.00022033,2]
[323100311,1713661838583,-500.0,0.00022033,2]
[323100312,1713661838592,-500.0,0.00022033,2]
[323100313,1713661838601,-501.09726813,0.00022033,2]
[323100314,1713661838610,-500.0,0.00022033,2]
[323100315,1713661838620,-500.0,0.00022033,2]
[323100316,1713661838630,-500.0,0.00022033,2]
[323100317,1713661838638,-500.0,0.00022033,2]
[323100318,1713661838647,-501.21016988,0.00022033,2]
[323100319,1713661838658,-501.13487406,0.00022033,2]
[323100320,1713661838667,-502.54182491,0.00022033,2]
[323100321,1713661838676,-500.82062342,0.00022033,2]
[323100322,1713661838685,-496.45471636,0.00022033,2]
[323100323,1713661838696,-500.0,0.00022033,2]
[323100324,1713661838705,-53089.71,0.00022033,2]
[323100325,1713661838714,-972.43,0.00022033,2]
[323100326,1713661838723,-840.27,0.00022033,2]
[323100327,1713661838732,-500.0,0.00022033,2]
[323100328,1713661838741,-500.0,0.00022033,2]
[323100329,1713661838750,-500.0,0.00022033,2]
[323100330,1713661838759,-2007.14,0.00022033,2]
[323100331,1713661838769,-500.0,0.00022033,2]
[323100332,1713661838777,-500.0,0.00022033,2]
[323100333,1713661838786,-500.0,0.00022033,2]
[323100334,1713661838795,-507.31179391,0.00022033,2]
[323100335,1713661838804,-500.0,0.00022033,2]
[323100336,1713661838813,-500.0,0.00022033,2]
[323100337,1713661838822,-500.0,0.00022033,2]
[323100338,1713661838832,-500.0,0.00022033,2]
[323100339,1713661838841,-500.0,0.00022033,2]
[323100340,1713661838851,-500.0,0.00022033,2]
[323100341,1713661838860,-559.39,0.00022033,2]
[323100342,1713661838871,-2000.0,0.00022033,2]
[323100343,1713661838882,-500.0,0.00022033,2]
[323100344,1713661838891,-601.54845449,0.00022034,2]
[323100345,1713661838996,-503.4900248,0.00022034,2]
[323100346,1713661839006,-500.0,0.00022034,2]
[323100347,1713661839016,-500.0,0.00022034,2]
[323100348,1713661839025,-500.0,0.00022034,2]
[323100349,1713661839035,-500.0,0.00022034,2]
[323100350,1713661839045,-500.0,0.00022034,2]
[323100351,1713661839054,-500.0,0.00022034,2]
[323100352,1713661839063,-501.23593107,0.00022034,2]
[323100353,1713661839072,-500.0,0.00022034,2]
[323100354,1713661839082,-500.0,0.00022034,2]
[323100355,1713661839091,-502.7746934,0.00022034,2]
[323100356,1713661839101,-500.0,0.00022034,2]
[323100357,1713661839111,-500.0,0.00022034,2]
[323100358,1713661839120,-500.0,0.00022034,2]
[323100359,1713661839129,-500.0,0.00022034,2]
[323100360,1713661839139,-500.0,0.00022034,2]
[323100361,1713661839148,-540.96003793,0.00022034,2]
[323100362,1713661839157,-503.72682381,0.00022034,2]
[323100363,1713661839166,-500.0,0.00022034,2]
[323100364,1713661839176,-500.0,0.00022034,2]
[323100365,1713661839185,-500.0,0.00022034,2]
[323100366,1713661839195,-500.0,0.00022034,2]
[323100367,1713661839204,-500.0,0.00022034,2]
[323100368,1713661839213,-587.08998366,0.00022034,2]
[323100369,1713661839222,-502.79274721,0.00022034,2]
[323100370,1713661839231,-500.0,0.00022034,2]
[323100371,1713661839240,-500.0,0.00022034,2]
[323100372,1713661839249,-500.0,0.00022034,2]
[323100373,1713661839258,-1002.50611089,0.00022034,2]
[323100374,1713661839267,-504.57168584,0.00022034,2]
[323100375,1713661839276,-500.80640409,0.00022034,2]
[323100376,1713661839285,-500.9369053,0.00022034,2]
[323100377,1713661839295,-508.17607116,0.00022034,2]
[323100378,1713661839304,-507.02918325,0.00022034,2]
[323100379,1713661839313,-525.00385302,0.00022034,2]
[323100380,1713661839322,-500.0,0.00022034,2]
[323100381,1713661839332,-500.0,0.00022034,2]
[323100382,1713661839342,-500.0,0.00022034,2]
[323100383,1713661839351,-868.91,0.00022034,2]
[323100384,1713661839361,-574.09811622,0.00022034,2]
[323100385,1713661839369,-500.0,0.00022034,2]
[323100386,1713661839378,-502.19134529,0.00022034,2]
[323100387,1713661839387,-502.63269257,0.00022034,2]
[323100388,1713661839397,-579.31775835,0.00022034,2]
[323100389,1713661839407,-507.384459,0.00022034,2]
[323100390,1713661839416,-500.0,0.00022034,2]
[323100391,1713661839425,-505.42350942,0.00022034,2]
[323100392,1713661839434,-500.0,0.00022034,2]
[323100393,1713661839443,-601.80718126,0.00022034,2]
[323100394,1713661839452,-500.87591766,0.00022034,2]
[323100395,1713661839461,-837.41,0.00022034,2]
[323100396,1713661839471,-528.81710653,0.00022034,2]
[323100397,1713661839480,-500.0,0.00022034,2]
[323100398,1713661839488,-502.55758394,0.00022034,2]
[323100399,1713661839497,-511.0561452,0.00022034,2]
[323100400,1713661839507,-622.66200551,0.00022034,2]
[323100401,1713661839516,-500.0,0.00022034,2]
[323100402,1713661839525,-500.53182425,0.00022034,2]
[323100403,1713661839534,-500.0,0.00022034,2]
[323100404,1713661839543,-500.0,0.00022034,2]
[323100405,1713661839552,-505.37683879,0.00022034,2]
[323100406,1713661839561,-500.0,0.00022034,2]
[323100407,1713661839570,-500.0,0.00022034,2]
[323100408,1713661839579,-500.0,0.00022034,2]
[323100409,1713661839588,-500.0,0.00022034,2]
[323100410,1713661839597,-500.0,0.00022034,2]
[323100411,1713661839606,-500.0,0.00022034,2]
[323100412,1713661839614,-29.87689745,0.00022034,2]
[323100776,1713662105165,171.911098,0.00020738,2]
[323100777,1713662200911,-187.17961686,0.00021034,2]
[323100778,1713662200945,-302.23394,0.00021035,2]
[323100779,1713662200975,-177.10323034,0.00021833,2]
[323100780,1713662201009,-483.00799742,0.00021933,2]
[323100781,1713662201041,-2000.0,0.00021934,2]
[323100782,1713662201072,-1000.0,0.00022,2]
[323100783,1713662272423,1022.32080421,0.00021933,2]
[323100784,1713662273638,178.15166905,0.00021931,2]
[323100785,1713662303654,178.15166905,0.00021932,2]
[323100787,1713662472654,422.63199769,0.00021932,2]
[323100788,1713662753121,369.80299804,0.00021931,2]
[323100789,1713663010927,237.5599,0.00021943,2]
[323100837,1713663032566,-524.34789262,0.00022009,4]
[323100839,1713663032575,-596.6050508,0.00022009,2]
[323100841,1713663032584,-1089.85834292,0.0002201,2]
[323100843,1713663032594,-673.16165461,0.00022029,2]
[323100845,1713663032603,-300.0,0.00022029,2]
[323100846,1713663032612,-300.0,0.00022029,2]
[323100848,1713663032621,-9003.61685201,0.00022029,2]
[323100850,1713663032633,-1587.38173877,0.00022029,2]
[323100851,1713663034014,155.02899691,0.00021931,2]
[323100884,1713663038550,-154.84515485,0.00022008,2]
[323100886,1713663038559,-544.26202431,0.00022028,2]
[323100888,1713663038569,-200.26600305,0.00022028,2]
[323100889,1713663038578,-456.60982056,0.00022028,2]
[323100890,1713663038588,-500.0,0.00022028,2]
[323100891,1713663038598,-155.05649958,0.00022028,2]
[323100892,1713663038607,-29816.32417699,0.00022029,2]
[323100893,1713663038617,-601.54845449,0.0002203,2]
[323100895,1713663038628,-3845.48199227,0.0002203,2]
[323100897,1713663038638,-677.63819334,0.0002203,2]
[323100899,1713663038647,-506.82605166,0.0002203,2]
[323100901,1713663038656,-544.45684407,0.0002203,2]
[323100903,1713663038665,-501.13487406,0.0002203,2]
[323100905,1713663038674,-500.0,0.0002203,2]
[323100907,1713663038683,-840.27,0.0002203,2]
[323100909,1713663038692,-62483.11003486,0.0002203,2]
[323100911,1713663038701,-500.0,0.0002203,2]
[323100913,1713663038710,-500.0,0.0002203,2]
[323100915,1713663038719,-500.0,0.0002203,2]
[323100917,1713663038729,-500.4620107,0.0002203,2]
[323100919,1713663038739,-500.0,0.0002203,2]
[323100921,1713663038748,-500.0,0.0002203,2]
[323100923,1713663038758,-2016.89,0.0002203,2]
[323100925,1713663038767,-500.0,0.0002203,2]
[323100927,1713663038776,-500.0,0.00022031,2]
[323100929,1713663038785,-500.0,0.00022031,2]
[323100931,1713663038794,-500.0,0.00022031,2]
[323100933,1713663038803,-172.79357874,0.00022031,2]
[323100935,1713663038812,-198.7389724,0.00022031,2]
[323100937,1713663038822,-500.0,0.00022031,2]
[323100939,1713663038831,-500.0,0.00022031,2]
[323100941,1713663038841,-500.0,0.00022031,2]
[323100943,1713663038850,-500.0,0.00022031,2]
[323100945,1713663038860,-500.0,0.00022031,2]
[323100947,1713663038869,-500.0,0.00022031,2]
[323100949,1713663038878,-500.0,0.00022031,2]
[323100951,1713663038887,-500.9369053,0.00022031,2]
[323100953,1713663038897,-508.17607116,0.00022031,2]
[323100955,1713663038906,-500.0,0.00022031,2]
[323100957,1713663038915,-868.91,0.00022031,2]
[323100959,1713663038924,-579.31775835,0.00022031,2]
[323100961,1713663038934,-837.41,0.00022031,2]
[323100963,1713663038943,-500.53182425,0.00022031,2]
[323100965,1713663038953,-500.0,0.00022031,2]
[323100967,1713663038962,-500.0,0.00022031,2]
[323100969,1713663038972,-500.0,0.00022031,2]
[323100971,1713663038981,-500.0,0.00022031,2]
[323100973,1713663038990,-500.0,0.00022031,2]
[323100975,1713663038999,-500.0,0.00022031,2]
[323100977,1713663039010,-504.21471406,0.00022031,2]
[323100979,1713663039019,-500.0,0.00022031,2]
[323100981,1713663039028,-2579.66,0.00022031,2]
[323100983,1713663039038,-2579.66,0.00022031,2]
[323100985,1713663039047,-2579.66,0.00022031,2]
[323100987,1713663039056,-975.03,0.00022031,2]
[323100989,1713663039066,-500.0,0.00022031,2]
[323100991,1713663039075,-500.0,0.00022031,2]
[323100993,1713663039084,-500.0,0.00022031,2]
[323100995,1713663039093,-167.29443662,0.00022031,2]
[323100997,1713663039102,-501.21016988,0.00022031,2]
[323100999,1713663039111,-500.0,0.00022031,2]
[323101001,1713663039120,-1259.91,0.00022031,2]
[323101003,1713663039129,-500.82062342,0.00022031,2]
[323101005,1713663039139,-1124.69,0.00022031,2]
[323101007,1713663039148,-6256.7792133,0.00022031,2]
[323101011,1713663039177,323.57762325,0.0002193,2]
[323101131,1713663041813,-500.0,0.0002203,2]
[323101132,1713663041822,-30679.17158475,0.00022031,2]
[323101237,1713663059583,500.0,0.00025,20]
[323101238,1713663065108,203.767885,0.00021031,2]
[323101239,1713663131842,3358.36835647,0.00022,6]
[323101240,1713663192015,5000.0,0.00022,2]
[323101241,1713663253780,3000.0,0.00022,3]
[323101242,1713663313861,284.48623544,0.00021927,2]
[323101243,1713663325567,217.08889758,0.00021932,2]
[323101244,1713663341497,1000.0,0.00022,2]
[323101245,1713663393871,1492.60815843,0.00022,7]
[323101246,1713663428070,223.91244679,0.00019931,2]
[323101248,1713663536680,278.2248134,0.00021029,2]
[323101249,1713663594219,248.92545601,0.00021927,2]
[323101250,1713663612329,625.05252023,0.00021509,2]
[323101251,1713663729158,951.54489149,0.00019931,2]
[323101252,1713663925383,217.809774,0.00021927,2]
[323101253,1713663941842,1000.0,0.00022,2]
[323101254,1713664030343,634.36326099,0.000199,2]
[323101255,1713664166250,2967.88070032,0.00021924,2]
[323101290,1713664232495,171.911098,0.00020754,2]
[323101309,1713664232673,-526.204949,0.00022022,2]
[323101767,1713664238681,-70.4001018,0.00022022,2]
[323101768,1713664238690,-656.05296816,0.00022023,2]
[323101770,1713664238699,-300.0,0.00022025,2]
[323101772,1713664238710,-300.0,0.00022025,2]
[323101774,1713664238719,-500.0,0.00022025,2]
[323101776,1713664238728,-500.0,0.00022025,2]
[323101778,1713664238741,-500.0,0.00022025,2]
[323101780,1713664238750,-500.0,0.00022025,2]
[323101782,1713664238759,-200.26600305,0.00022025,2]
[323101784,1713664238768,-456.60982056,0.00022025,2]
[323101785,1713664238778,-544.26202431,0.00022025,2]
[323101787,1713664238787,-500.0,0.00022025,2]
[323101789,1713664238796,-500.0,0.00022026,2]
[323101790,1713664238806,-503.83505764,0.00022026,2]
[323101792,1713664238816,-500.0,0.00022026,2]
[323101793,1713664238825,-500.0,0.00022026,2]
[323101795,1713664238835,-2016.89,0.00022026,2]
[323101797,1713664238843,-500.0,0.00022026,2]
[323101799,1713664238852,-502.51729193,0.00022026,2]
[323101801,1713664238861,-500.4620107,0.00022026,2]
[323101802,1713664238870,-500.0,0.00022026,2]
[323101804,1713664238879,-983.34,0.00022026,2]
[323101806,1713664238889,-505.86358156,0.00022026,2]
[323101808,1713664238898,-500.0,0.00022026,2]
[323101810,1713664238907,-500.0,0.00022026,2]
[323101812,1713664238916,-500.0,0.00022026,2]
[323101814,1713664238925,-500.0,0.00022026,2]
[323101816,1713664238934,-500.0,0.00022026,2]
[323101817,1713664238944,-506.06553323,0.00022026,2]
[323101819,1713664238953,-500.0,0.00022026,2]
[323101821,1713664238962,-500.0,0.00022026,2]
[323101823,1713664238971,-500.0,0.00022026,2]
[323101825,1713664238980,-500.0,0.00022026,2]
[323101827,1713664238989,-500.0,0.00022026,2]
[323101829,1713664238998,-500.0,0.00022026,2]
[323101830,1713664239007,-541.14793866,0.00022026,2]
[323101832,1713664239017,-504.75483394,0.00022026,2]
[323101834,1713664239026,-505.95654324,0.00022026,2]
[323101836,1713664239036,-500.0,0.00022026,2]
[323101838,1713664239045,-500.0,0.00022026,2]
[323101840,1713664239055,-8971.01,0.00022026,2]
[323101842,1713664239064,-500.0,0.00022026,2]
[323101844,1713664239073,-505.56398096,0.00022026,2]
[323101846,1713664239083,-500.0,0.00022026,2]
[323101848,1713664239093,-587.09914745,0.00022026,2]
[323101850,1713664239102,-1060.09,0.00022026,2]
[323101852,1713664239111,-525.26339244,0.00022026,2]
[323101854,1713664239120,-509.3588371,0.00022026,2]
[323101856,1713664239129,-500.0,0.00022026,2]
[323101858,1713664239139,-500.0,0.00022026,2]
[323101860,1713664239148,-1005.15726249,0.00022026,2]
[323101862,1713664239156,-7210.18,0.00022026,2]
[323101864,1713664239166,-500.96142743,0.00022026,2]
[323101866,1713664239174,-508.10133103,0.00022026,2]
[323101868,1713664239183,-603.77596975,0.00022026,2]
[323101870,1713664239193,-507.90823416,0.00022026,2]
[323101873,1713664239203,-529.4,0.00022026,2]
[323101875,1713664239212,-500.0,0.00022026,2]
[323101876,1713664239221,-500.0,0.00022026,2]
[323101878,1713664239230,-577.93708886,0.00022026,2]
[323101880,1713664239239,-45456.0063501,0.00022026,2]
[323101881,1713664239251,-512.55452793,0.00022026,2]
[323101882,1713664239260,-504.49760136,0.00022026,2]
[323101883,1713664239268,-505.5477228,0.00022026,2]
[323101884,1713664239277,-500.0,0.00022026,2]
[323101885,1713664239286,-505.41552766,0.00022026,2]
[323101886,1713664239296,-505.86824263,0.00022026,2]
[323101887,1713664239305,-501.76409476,0.00022026,2]
[323101888,1713664239314,-500.0,0.00022026,2]
[323101889,1713664239323,-507.03210194,0.00022026,2]
[323101890,1713664239332,-529.27756945,0.00022026,2]
[323101891,1713664239342,-510.25823631,0.00022026,2]
[323101892,1713664239351,-500.0,0.00022026,2]
[323101893,1713664239361,-436.03527286,0.00022026,2]
[323101894,1713664239370,-500.0,0.00022026,2]
[323101895,1713664239379,-500.0,0.00022026,2]
[323101896,1713664239388,-545.33446551,0.00022026,2]
[323101897,1713664239397,-2382.79,0.00022026,2]
[323101898,1713664239406,-500.0,0.00022026,2]
[323101899,1713664239415,-500.0,0.00022026,2]
[323101900,1713664239425,-500.0,0.00022026,2]
[323101901,1713664239434,-500.0,0.00022026,2]
[323101902,1713664239444,-500.0,0.00022026,2]
[323101903,1713664239453,-500.0,0.00022026,2]
[323101904,1713664239463,-500.0,0.00022026,2]
[323101905,1713664239472,-621.82,0.00022026,2]
[323101906,1713664239482,-500.0,0.00022026,2]
[323101907,1713664239493,-502.42714565,0.00022026,2]
[323101908,1713664239502,-500.0,0.00022026,2]
[323101909,1713664239510,-502.59862632,0.00022026,2]
[323101910,1713664239522,-500.0,0.00022026,2]
[323101912,1713664239531,-448.83830317,0.00022026,2]
[323101914,1713664239540,-500.0,0.00022026,2]
[323101915,1713664239549,-502.42381603,0.00022026,2]
[323101917,1713664239559,-500.0,0.00022026,2]
[323101919,1713664239567,-500.0,0.00022026,2]
[323101921,1713664239578,-500.0,0.00022026,2]
[323101924,1713664239587,-501.65300556,0.00022026,2]
[323101925,1713664239596,-500.0,0.00022026,2]
[323101927,1713664239606,-27703.70825693,0.00022026,2]
[323102087,1713664240855,-2000.0,0.00022025,2]
[323102089,1713664240864,-11578.66363465,0.00022026,2]
[323102095,1713664240910,-3306.85652631,0.00022026,2]
[323102841,1713664331640,422.90884066,0.00019926,2]
[323102842,1713664365918,1000.0,0.00022,2]
[323102843,1713664385144,604.0,0.00024483,35]
[323102844,1713664386927,604.0,0.00024473,35]
[323102845,1713664387497,604.0,0.00024463,35]
[323102848,1713664425398,1000.0,0.00022,2]
[323102855,1713664539960,1000.0,0.00022,2]
[323102856,1713664632731,281.93922711,0.00019926,2]
[323102857,1713664744513,423.0,0.00024207,35]
[323102858,1713664745112,423.0,0.00024197,35]
[323102859,1713664746950,423.0,0.00024187,35]
[323102860,1713664933963,187.95948474,0.00019926,2]
[323102861,1713665007060,596.6050508,0.00022,2]
[323102862,1713665018297,154.84515485,0.00022,2]
[323102863,1713665038938,1087.28742838,0.00022,2]
[323102864,1713665038986,4982.74773874,0.00022,2]
[323102865,1713665105030,296.0,0.00024205,35]
[323102866,1713665107104,296.0,0.00024195,35]
[323102867,1713665107694,296.0,0.00024185,35]
[323102868,1713665107753,1877.41559284,0.00022,2]
[323102869,1713665109481,3321.83182583,0.00022,2]
[323102870,1713665111895,154.84515485,0.00022,2]
[323102871,1713665140693,1000.0,0.00022,2]
[323102872,1713665199557,-265.48122093,0.00022032,7]
[323102873,1713665199634,-21496.92877907,0.00024463,7]
[323102874,1713665218581,596.6050508,0.00022,2]
[323102875,1713665315425,154.84515485,0.00022,2]
[323102876,1713665344461,7863.87835467,0.00022,2]
[323102877,1713665347193,15999.999998,0.00022,2]
[323102878,1713665387952,154.84515485,0.00022,2]
[323103048,1713665437979,-2768.19318819,0.00022003,2]
[323103050,1713665437989,-656.05296816,0.00022004,2]
[323103052,1713665437998,-300.0,0.0002202,2]
[323103054,1713665438009,-300.0,0.0002202,2]
[323103056,1713665438020,-177.19261343,0.00022021,2]
[323103058,1713665438029,-481.78923064,0.00022021,2]
[323103060,1713665438038,-1432.01828294,0.00022021,2]
[323103062,1713665438048,-667.78766596,0.00022021,2]
[323103064,1713665438058,-500.0,0.00022021,2]
[323103066,1713665438067,-456.60982056,0.00022021,2]
[323103068,1713665438077,-200.26600305,0.00022021,2]
[323103070,1713665438086,-544.26202431,0.00022021,2]
[323103071,1713665438096,-6464.23198166,0.00022021,2]
[323103072,1713665438106,-154.84515485,0.00022021,2]
[323103073,1713665438115,-527.77951746,0.00022022,2]
[323103075,1713665438125,-273.33748509,0.00022022,2]
[323103077,1713665438134,-8971.01,0.00022022,2]
[323103079,1713665438144,-1060.09,0.00022022,2]
[323103081,1713665438153,-510.25823631,0.00022022,2]
[323103083,1713665438162,-500.0,0.00022022,2]
[323103085,1713665438171,-545.33446551,0.00022022,2]
[323103087,1713665438180,-500.0,0.00022022,2]
[323103089,1713665438190,-500.0,0.00022022,2]
[323103091,1713665438199,-500.0,0.00022022,2]
[323103093,1713665438208,-500.0,0.00022022,2]
[323103095,1713665438218,-500.0,0.00022022,2]
[323103096,1713665438230,-502.42381603,0.00022022,2]
[323103098,1713665438238,-500.0,0.00022022,2]
[323103100,1713665438247,-500.0,0.00022022,2]
[323103103,1713665438256,-502.42714565,0.00022022,2]
[323103105,1713665438265,-500.0,0.00022022,2]
[323103107,1713665438274,-841.38,0.00022022,2]
[323103108,1713665438282,-500.0,0.00022022,2]
[323103111,1713665438291,-500.0,0.00022022,2]
[323103113,1713665438301,-983.34,0.00022022,2]
[323103114,1713665438310,-500.0,0.00022022,2]